[Event "RUS-ch Blitz 2021"]
[Site "Sochi"]
[Date "2021.10.11"]
[Round "6.23"]
[White "Vetokhin, Savva"]
[Black "Zakaryan, David"]
[Result "1-0"]
[ECO "D02"]
[WhiteElo "2339"]
[BlackElo "2283"]
[Annotator "NA"]
[PlyCount "109"]
[EventDate "2021.10.11"]
[EventType "blitz"]
[EventCountry "RUS"]
[SourceTitle "playchess.com"]
[Source "ChessBase"]
[SourceQuality "1"]
[TimeControl "180+2"]

1. Nf3 {[%emt 0:00:00]} Nf6 {[%emt 0:00:05]} 2. g3 {[%emt 0:00:01]} g6 {
[%emt 0:00:00]} 3. Bg2 {[%emt 0:00:00]} Bg7 {[%emt 0:00:07]} 4. O-O {[%emt 0:
00:04]} O-O {[%emt 0:00:00]} 5. d4 {[%emt 0:00:00]} d5 {[%emt 0:00:00]} 6. Nbd2
{[%emt 0:00:00]} c6 {[%emt 0:00:05]} 7. c3 {[%emt 0:00:02]} Bf5 {[%emt 0:00:00]
} 8. Nh4 {[%emt 0:00:00]} Be6 {[%emt 0:00:00]} 9. e4 {[%emt 0:00:10]} dxe4 {
[%emt 0:00:00]} 10. Nxe4 {[%emt 0:00:00]} Nxe4 {[%emt 0:00:00]} 11. Bxe4 {
[%emt 0:00:02]} Bd5 {[%emt 0:00:00]} 12. Bg2 {[%emt 0:00:04]} Bxg2 {[%emt 0:00:
07]} 13. Kxg2 {[%emt 0:00:00]} Qd5+ {[%emt 0:00:13]} 14. Nf3 {[%emt 0:00:06]}
Nd7 {[%emt 0:00:00]} 15. Qe2 {[%emt 0:00:02]} e5 {[%emt 0:00:06]} 16. dxe5 {
[%emt 0:00:05]} Nxe5 {[%emt 0:00:00]} 17. Rd1 {[%emt 0:00:01]} Qc4 {[%emt 0:00:
11]} 18. Qxc4 {[%emt 0:00:15]} Nxc4 {[%emt 0:00:00]} 19. Rb1 {[%emt 0:00:15]}
b5 {[%emt 0:00:04]} 20. b3 {[%emt 0:00:06]} Nb6 {[%emt 0:00:00]} 21. Bb2 {
[%emt 0:00:00]} Rfd8 {[%emt 0:00:09]} 22. Kf1 {[%emt 0:00:11]} a5 {[%emt 0:00:
01]} 23. Rxd8+ {[%emt 0:00:25]} Rxd8 {[%emt 0:00:02]} 24. Ke2 {[%emt 0:00:02]}
Nd5 {[%emt 0:00:15]} 25. Nd4 {[%emt 0:00:32]} Bxd4 {[%emt 0:00:04]} 26. cxd4 {
[%emt 0:00:05]} Kf8 {[%emt 0:00:00]} 27. Rc1 {[%emt 0:00:01]} Re8+ {[%emt 0:00:
11]} 28. Kf3 {[%emt 0:00:00]} Re6 {[%emt 0:00:00]} 29. Ba3+ {[%emt 0:00:04]}
Ke8 {[%emt 0:00:00]} 30. Bc5 {[%emt 0:00:00]} Kd7 {[%emt 0:00:00]} 31. a4 {
[%emt 0:00:02]} b4 {[%emt 0:00:10]} 32. h3 {[%emt 0:00:06]} f5 {[%emt 0:00:07]}
33. g4 {[%emt 0:00:03]} Rf6 {[%emt 0:00:07]} 34. g5 {[%emt 0:00:02]} Re6 {
[%emt 0:00:01]} 35. Bf8 {[%emt 0:00:14]} Nc3 {[%emt 0:00:12]} 36. Bc5 {[%emt 0:
00:04]} Ne4 {[%emt 0:00:17]} 37. Rc2 {[%emt 0:00:32]} Nxg5+ {[%emt 0:00:47]}
38. Kg2 {[%emt 0:00:00]} Kc7 {[%emt 0:00:31]} 39. d5 {[%emt 0:00:00]} Re5 {
[%emt 0:00:06]} 40. Be3 {[%emt 0:00:00]} Rxd5 {[%emt 0:00:14]} 41. Bxg5 {
[%emt 0:00:05]} Rd3 {[%emt 0:00:02]} 42. Bf4+ {[%emt 0:00:00]} Kb7 {[%emt 0:00:
03]} 43. Rb2 {[%emt 0:00:05]} c5 {[%emt 0:00:00]} 44. Rc2 {[%emt 0:00:09]} c4 {
[%emt 0:00:08]} 45. Rxc4 {[%emt 0:00:00]} Rxb3 {[%emt 0:00:00]} 46. Rc5 {
[%emt 0:00:03]} Kb6 {[%emt 0:00:03]} 47. Rb5+ {[%emt 0:00:00]} Ka6 {[%emt 0:00:
02]} 48. Be3 {[%emt 0:00:01]} f4 {[%emt 0:00:01]} 49. Bxf4 {[%emt 0:00:10]} Ra3
{[%emt 0:00:02]} 50. Be3 {[%emt 0:00:01]} Ra2 {[%emt 0:00:06]} 51. Rb6+ {
[%emt 0:00:01]} Ka7 {[%emt 0:00:00]} 52. Rxb4+ {[%emt 0:00:04]} Ka6 {[%emt 0:
00:00]} 53. Rb6+ {[%emt 0:00:00]} Ka7 {[%emt 0:00:01]} 54. Rb2+ {[%emt 0:00:00]
} Ka6 {[%emt 0:00:00]} 55. Rxa2 {[%emt 0:00:04]} 1-0

[Event "RUS-ch Blitz 2021"]
[Site "Sochi"]
[Date "2021.10.11"]
[Round "6.24"]
[White "Esipenko, Aleksandr"]
[Black "Gutenev, Alexander"]
[Result "0-1"]
[ECO "B59"]
[WhiteElo "2087"]
[BlackElo "2455"]
[Annotator "ChessBase"]
[PlyCount "120"]
[EventDate "2021.10.11"]
[EventType "blitz"]
[EventCountry "RUS"]
[SourceTitle "playchess.com"]
[Source "ChessBase"]
[SourceQuality "1"]
[TimeControl "180+2"]

1. e4 {[%emt 0:00:00]} c5 {[%emt 0:00:05]} 2. Nf3 {[%emt 0:00:03]} Nc6 {
[%emt 0:00:00]} 3. d4 {[%emt 0:00:00]} cxd4 {[%emt 0:00:05]} 4. Nxd4 {[%emt 0:
00:03]} Nf6 {[%emt 0:00:00]} 5. Nc3 {[%emt 0:00:13]} d6 {[%emt 0:00:00]} 6. Be2
{[%emt 0:00:00]} e5 {[%emt 0:00:00]} 7. Nb3 {[%emt 0:00:00]} Be7 {[%emt 0:00:
02]} 8. O-O {[%emt 0:00:00]} a5 {[%emt 0:00:00]} 9. Be3 {[%emt 0:00:12]} O-O {
[%emt 0:00:00]} 10. Qd2 {[%emt 0:00:11]} a4 {[%emt 0:00:00]} 11. Nc1 {[%emt 0:
00:01]} a3 {[%emt 0:00:02]} 12. b3 {[%emt 0:00:13]} Be6 {[%emt 0:00:08]} 13.
Bf3 {[%emt 0:00:00]} Qa5 {[%emt 0:00:10]} 14. N1e2 {[%emt 0:00:06]} Rac8 {
[%emt 0:00:10]} 15. h3 {[%emt 0:00:00]} Rfd8 {[%emt 0:00:02]} 16. Rfd1 {
[%emt 0:00:02]} h6 {[%emt 0:00:03]} 17. Rac1 {[%emt 0:00:00]} Bf8 {[%emt 0:00:
25]} 18. Nb1 {[%emt 0:00:37]} Qxd2 {[%emt 0:00:11]} 19. Rxd2 {[%emt 0:00:00]}
d5 {[%emt 0:00:04]} 20. exd5 {[%emt 0:00:34]} Nxd5 {[%emt 0:00:09]} 21. Bxd5 {
[%emt 0:00:10]} Rxd5 {[%emt 0:00:12]} 22. Rxd5 {[%emt 0:00:08]} Bxd5 {[%emt 0:
00:00]} 23. c4 {[%emt 0:00:00]} Be6 {[%emt 0:00:04]} 24. c5 {[%emt 0:00:09]}
Nb4 {[%emt 0:00:07]} 25. Nxa3 {[%emt 0:00:26]} Nxa2 {[%emt 0:00:00]} 26. Rc2 {
[%emt 0:00:02]} Bxb3 {[%emt 0:00:08]} 27. Rb2 {[%emt 0:00:01]} Bd5 {[%emt 0:00:
03]} 28. Rd2 {[%emt 0:00:14]} Be6 {[%emt 0:00:05]} 29. Rb2 {[%emt 0:00:08]} Bd5
{[%emt 0:00:15]} 30. Rd2 {[%emt 0:00:04]} Nb4 {[%emt 0:00:08]} 31. Nc3 {
[%emt 0:00:01]} Be6 {[%emt 0:00:07]} 32. Rb2 {[%emt 0:00:03]} Bxc5 {[%emt 0:00:
14]} 33. Bxc5 {[%emt 0:00:02]} Rxc5 {[%emt 0:00:00]} 34. Ne4 {[%emt 0:00:00]}
Rc1+ {[%emt 0:00:17]} 35. Kh2 {[%emt 0:00:00]} Nd3 {[%emt 0:00:17]} 36. Rxb7 {
[%emt 0:00:05]} Bd5 {[%emt 0:00:02]} 37. Rb8+ {[%emt 0:00:05]} Kh7 {[%emt 0:00:
00]} 38. Ng3 {[%emt 0:00:08]} Nxf2 {[%emt 0:00:07]} 39. Rd8 {[%emt 0:00:00]}
Be6 {[%emt 0:00:09]} 40. Nb5 {[%emt 0:00:01]} f5 {[%emt 0:00:09]} 41. Ne2 {
[%emt 0:00:04]} Re1 {[%emt 0:00:05]} 42. Nbc3 {[%emt 0:00:05]} Bc4 {[%emt 0:00:
01]} 43. Rd2 {[%emt 0:00:07]} f4 {[%emt 0:00:03]} 44. Ng1 {[%emt 0:00:00]} Ne4
{[%emt 0:00:02]} 45. Nxe4 {[%emt 0:00:02]} Rxe4 {[%emt 0:00:04]} 46. Nf3 {
[%emt 0:00:00]} Re3 {[%emt 0:00:02]} 47. Kg1 {[%emt 0:00:04]} e4 {[%emt 0:00:
02]} 48. Nh4 {[%emt 0:00:01]} Rd3 {[%emt 0:00:08]} 49. Rxd3 {[%emt 0:00:06]}
Bxd3 {[%emt 0:00:01]} 50. Kf2 {[%emt 0:00:00]} g5 {[%emt 0:00:03]} 51. Nf5 {
[%emt 0:00:01]} e3+ {[%emt 0:00:00]} 52. Nxe3 {[%emt 0:00:04]} fxe3+ {[%emt 0:
00:03]} 53. Kxe3 {[%emt 0:00:00]} Bf1 {[%emt 0:00:01]} 54. Kf2 {[%emt 0:00:00]}
Bb5 {[%emt 0:00:00]} 55. g3 {[%emt 0:00:03]} Kg6 {[%emt 0:00:00]} 56. Kf3 {
[%emt 0:00:02]} Kf5 {[%emt 0:00:00]} 57. g4+ {[%emt 0:00:04]} Ke5 {[%emt 0:00:
01]} 58. Kg3 {[%emt 0:00:02]} Ke4 {[%emt 0:00:02]} 59. h4 {[%emt 0:00:00]} Ke3
{[%emt 0:00:02]} 60. hxg5 {[%emt 0:00:00]} hxg5 {[%emt 0:00:01]} 0-1

[Event "RUS-ch Blitz 2021"]
[Site "Sochi"]
[Date "2021.10.11"]
[Round "7.1"]
[White "Antipov, Mikhail Al."]
[Black "Timofeev, Artyom"]
[Result "0-1"]
[ECO "B30"]
[WhiteElo "2619"]
[BlackElo "2586"]
[Annotator "ChessBase"]
[PlyCount "96"]
[EventDate "2021.10.11"]
[EventType "blitz"]
[EventCountry "RUS"]
[SourceTitle "playchess.com"]
[Source "ChessBase"]
[SourceQuality "1"]
[TimeControl "180+2"]

1. e4 {[%emt 0:00:00]} c5 {[%emt 0:00:00]} 2. Nf3 {[%emt 0:00:00]} Nc6 {
[%emt 0:00:06]} 3. Nc3 {[%emt 0:00:04]} e5 {[%emt 0:00:00]} 4. Bc4 {[%emt 0:00:
00]} d6 {[%emt 0:00:09]} 5. d3 {[%emt 0:00:03]} Be7 {[%emt 0:00:00]} 6. a4 {
[%emt 0:00:00]} Nf6 {[%emt 0:00:00]} 7. Bg5 {[%emt 0:00:00]} O-O {[%emt 0:00:
16]} 8. Bxf6 {[%emt 0:00:02]} Bxf6 {[%emt 0:00:00]} 9. Nd5 {[%emt 0:00:00]} Be6
{[%emt 0:00:03]} 10. c3 {[%emt 0:00:02]} Rb8 {[%emt 0:00:09]} 11. Qd2 {[%emt 0:
00:25]} Bxd5 {[%emt 0:00:05]} 12. Bxd5 {[%emt 0:00:02]} Ne7 {[%emt 0:00:00]}
13. Bb3 {[%emt 0:00:21]} d5 {[%emt 0:00:01]} 14. exd5 {[%emt 0:00:08]} Nxd5 {
[%emt 0:00:02]} 15. O-O {[%emt 0:00:04]} Qd6 {[%emt 0:00:23]} 16. Rad1 {
[%emt 0:00:34]} Rbd8 {[%emt 0:00:00]} 17. Rfe1 {[%emt 0:00:07]} Nf4 {[%emt 0:
00:02]} 18. Bc4 {[%emt 0:00:06]} Qc6 {[%emt 0:00:14]} 19. Re4 {[%emt 0:00:10]}
a6 {[%emt 0:00:09]} 20. a5 {[%emt 0:00:14]} Qc7 {[%emt 0:00:20]} 21. g3 {
[%emt 0:00:05]} Nd5 {[%emt 0:00:03]} 22. Ra1 {[%emt 0:00:00]} Ne7 {[%emt 0:00:
04]} 23. Qc2 {[%emt 0:00:04]} Nc6 {[%emt 0:00:03]} 24. Qa4 {[%emt 0:00:02]} Rd7
{[%emt 0:00:03]} 25. Nd2 {[%emt 0:00:00]} g6 {[%emt 0:00:06]} 26. Re2 {[%emt 0:
00:17]} Kg7 {[%emt 0:00:05]} 27. h4 {[%emt 0:00:26]} Bd8 {[%emt 0:00:08]} 28.
Nb3 {[%emt 0:00:08]} Be7 {[%emt 0:00:00]} 29. h5 {[%emt 0:00:07]} gxh5 {
[%emt 0:00:04]} 30. Kg2 {[%emt 0:00:00]} Qd6 {[%emt 0:00:03]} 31. Nd2 {[%emt 0:
00:16]} Qg6 {[%emt 0:00:05]} 32. Rh1 {[%emt 0:00:00]} h4 {[%emt 0:00:05]} 33.
Nf3 {[%emt 0:00:00]} hxg3 {[%emt 0:00:02]} 34. fxg3 {[%emt 0:00:10]} Kh8 {
[%emt 0:00:30]} 35. Nxe5 {[%emt 0:00:12]} Nxe5 {[%emt 0:00:09]} 36. Rxe5 {
[%emt 0:00:00]} Rg8 {[%emt 0:00:02]} 37. Rh3 {[%emt 0:00:00]} Bd6 {[%emt 0:00:
17]} 38. Reh5 {[%emt 0:00:02]} Re7 {[%emt 0:00:01]} 39. Rxh7+ {[%emt 0:00:06]}
Qxh7 {[%emt 0:00:00]} 40. Rxh7+ {[%emt 0:00:03]} Kxh7 {[%emt 0:00:00]} 41. Bd5
{[%emt 0:00:00]} Rxg3+ {[%emt 0:00:03]} 42. Kf2 {[%emt 0:00:00]} Rg5 {[%emt 0:
00:10]} 43. Qh4+ {[%emt 0:00:00]} Kg6 {[%emt 0:00:01]} 44. Qc4 {[%emt 0:00:07]}
Rf5+ {[%emt 0:00:07]} 45. Kg2 {[%emt 0:00:00]} Re2+ {[%emt 0:00:01]} 46. Kh3 {
[%emt 0:00:05]} Rh2+ {[%emt 0:00:00]} 47. Kg4 {[%emt 0:00:00]} Rf4+ {[%emt 0:
00:00]} 48. Qxf4 {[%emt 0:00:01]} Bxf4 {[%emt 0:00:02]} 0-1

[Event "RUS-ch Blitz 2021"]
[Site "Sochi"]
[Date "2021.10.11"]
[Round "7.3"]
[White "Savchenko, Boris"]
[Black "Sarana, Alexey"]
[Result "1-0"]
[ECO "B90"]
[WhiteElo "2535"]
[BlackElo "2649"]
[Annotator "ChessBase"]
[PlyCount "59"]
[EventDate "2021.10.11"]
[EventType "blitz"]
[EventCountry "RUS"]
[SourceTitle "playchess.com"]
[Source "ChessBase"]
[SourceQuality "1"]
[TimeControl "180+2"]

1. e4 {[%emt 0:00:00]} c5 {[%emt 0:00:00]} 2. Nf3 {[%emt 0:00:00]} d6 {[%emt 0:
00:00]} 3. d4 {[%emt 0:00:09]} cxd4 {[%emt 0:00:01]} 4. Nxd4 {[%emt 0:00:00]}
Nf6 {[%emt 0:00:00]} 5. Nc3 {[%emt 0:00:00]} a6 {[%emt 0:00:00]} 6. h3 {
[%emt 0:00:00]} b5 {[%emt 0:00:14]} 7. a4 {[%emt 0:00:00]} b4 {[%emt 0:00:00]}
8. Nd5 {[%emt 0:00:00]} e6 {[%emt 0:00:00]} 9. Nxf6+ {[%emt 0:00:00]} Qxf6 {
[%emt 0:00:00]} 10. Bc4 {[%emt 0:00:14]} Be7 {[%emt 0:00:08]} 11. O-O {[%emt 0:
00:14]} Bb7 {[%emt 0:00:08]} 12. Re1 {[%emt 0:00:10]} O-O {[%emt 0:00:08]} 13.
a5 {[%emt 0:00:06]} Nc6 {[%emt 0:00:07]} 14. Nxc6 {[%emt 0:00:14]} Bxc6 {
[%emt 0:00:02]} 15. Qd3 {[%emt 0:00:07]} d5 {[%emt 0:00:31]} 16. exd5 {[%emt 0:
00:18]} exd5 {[%emt 0:00:00]} 17. Bxa6 {[%emt 0:00:07]} Bc5 {[%emt 0:00:05]}
18. Rf1 {[%emt 0:00:28]} Rfe8 {[%emt 0:00:40]} 19. Bb5 {[%emt 0:00:23]} Re4 {
[%emt 0:00:55]} 20. Be3 {[%emt 0:00:32]} Bxb5 {[%emt 0:00:25]} 21. Qxb5 {
[%emt 0:00:04]} Bxe3 {[%emt 0:00:03]} 22. Qxd5 {[%emt 0:00:10]} Ree8 {[%emt 0:
00:12]} 23. fxe3 {[%emt 0:00:00]} Qxb2 {[%emt 0:00:00]} 24. Rxf7 {[%emt 0:00:
08]} Kh8 {[%emt 0:00:03]} 25. Raf1 {[%emt 0:00:02]} h6 {[%emt 0:00:01]} 26. Rc7
{[%emt 0:00:14]} Qa3 {[%emt 0:00:06]} 27. Rff7 {[%emt 0:00:07]} Qxe3+ {[%emt 0:
00:02]} 28. Kh2 {[%emt 0:00:00]} Rad8 {[%emt 0:00:01]} 29. Qf5 {[%emt 0:00:06]}
Re5 {[%emt 0:00:02]} 30. Rf8+ {[%emt 0:00:05]} 1-0

[Event "RUS-ch Blitz 2021"]
[Site "Sochi"]
[Date "2021.10.11"]
[Round "7.4"]
[White "Sjugirov, Sanan"]
[Black "Rozum, Ivan"]
[Result "1-0"]
[ECO "E11"]
[WhiteElo "2663"]
[BlackElo "2529"]
[Annotator "ChessBase"]
[PlyCount "131"]
[EventDate "2021.10.11"]
[EventType "blitz"]
[EventCountry "RUS"]
[SourceTitle "playchess.com"]
[Source "ChessBase"]
[SourceQuality "1"]
[TimeControl "180+2"]

1. d4 {[%emt 0:00:00]} Nf6 {[%emt 0:00:00]} 2. c4 {[%emt 0:00:08]} e6 {[%emt 0:
00:01]} 3. Nf3 {[%emt 0:00:00]} Bb4+ {[%emt 0:00:00]} 4. Bd2 {[%emt 0:00:11]}
Bxd2+ {[%emt 0:00:02]} 5. Qxd2 {[%emt 0:00:00]} O-O {[%emt 0:00:00]} 6. g3 {
[%emt 0:00:04]} d5 {[%emt 0:00:06]} 7. Bg2 {[%emt 0:00:04]} c6 {[%emt 0:00:00]}
8. O-O {[%emt 0:00:13]} Nbd7 {[%emt 0:00:02]} 9. Rc1 {[%emt 0:00:13]} b6 {
[%emt 0:00:05]} 10. Na3 {[%emt 0:00:37]} Bb7 {[%emt 0:00:00]} 11. cxd5 {
[%emt 0:00:02]} exd5 {[%emt 0:00:12]} 12. Nb1 {[%emt 0:00:29]} c5 {[%emt 0:00:
11]} 13. Nc3 {[%emt 0:00:00]} Re8 {[%emt 0:00:07]} 14. e3 {[%emt 0:00:06]} a6 {
[%emt 0:00:08]} 15. Rab1 {[%emt 0:00:10]} c4 {[%emt 0:00:15]} 16. a4 {[%emt 0:
00:18]} Bc6 {[%emt 0:00:05]} 17. b3 {[%emt 0:00:07]} b5 {[%emt 0:00:06]} 18.
axb5 {[%emt 0:00:07]} axb5 {[%emt 0:00:00]} 19. bxc4 {[%emt 0:00:04]} bxc4 {
[%emt 0:00:00]} 20. Qc2 {[%emt 0:00:14]} Qc7 {[%emt 0:00:29]} 21. Nd2 {[%emt 0:
00:05]} g6 {[%emt 0:00:08]} 22. Ra1 {[%emt 0:00:06]} Kg7 {[%emt 0:00:00]} 23.
Rcb1 {[%emt 0:00:01]} Reb8 {[%emt 0:00:10]} 24. Qc1 {[%emt 0:00:04]} Qd6 {
[%emt 0:00:07]} 25. Rxb8 {[%emt 0:00:07]} Rxb8 {[%emt 0:00:21]} 26. Ra6 {
[%emt 0:00:00]} Rb6 {[%emt 0:00:03]} 27. Ra7 {[%emt 0:00:04]} Nf8 {[%emt 0:00:
25]} 28. e4 {[%emt 0:00:03]} dxe4 {[%emt 0:00:10]} 29. Nxc4 {[%emt 0:00:00]}
Qb8 {[%emt 0:00:05]} 30. Qa1 {[%emt 0:00:07]} Rb7 {[%emt 0:00:08]} 31. Rxb7 {
[%emt 0:00:04]} Bxb7 {[%emt 0:00:09]} 32. d5 {[%emt 0:00:00]} N8d7 {[%emt 0:00:
12]} 33. Nxe4 {[%emt 0:00:00]} Qd8 {[%emt 0:00:06]} 34. Ne3 {[%emt 0:00:09]}
Qe7 {[%emt 0:00:01]} 35. d6 {[%emt 0:00:01]} Qe5 {[%emt 0:00:08]} 36. Qxe5 {
[%emt 0:00:00]} Nxe5 {[%emt 0:00:00]} 37. Nxf6 {[%emt 0:00:06]} Bxg2 {[%emt 0:
00:01]} 38. d7 {[%emt 0:00:05]} Nc6 {[%emt 0:00:13]} 39. Ne8+ {[%emt 0:00:00]}
Kf8 {[%emt 0:00:00]} 40. Kxg2 {[%emt 0:00:00]} Ke7 {[%emt 0:00:04]} 41. h4 {
[%emt 0:00:02]} h5 {[%emt 0:00:00]} 42. Nc7 {[%emt 0:00:13]} Kxd7 {[%emt 0:00:
00]} 43. Ncd5 {[%emt 0:00:00]} Ke6 {[%emt 0:00:00]} 44. Nf4+ {[%emt 0:00:00]}
Kf6 {[%emt 0:00:03]} 45. Ne2 {[%emt 0:00:04]} Ne5 {[%emt 0:00:00]} 46. Nd5+ {
[%emt 0:00:00]} Kg7 {[%emt 0:00:01]} 47. Ndf4 {[%emt 0:00:00]} Nc6 {[%emt 0:00:
02]} 48. Nc3 {[%emt 0:00:00]} Ne5 {[%emt 0:00:00]} 49. Ne4 {[%emt 0:00:05]} Ng4
{[%emt 0:00:00]} 50. Nh3 {[%emt 0:00:05]} Ne5 {[%emt 0:00:00]} 51. Nhg5 {
[%emt 0:00:00]} Nc4 {[%emt 0:00:00]} 52. Nc5 {[%emt 0:00:03]} Ne5 {[%emt 0:00:
02]} 53. Nb7 {[%emt 0:00:03]} Nc4 {[%emt 0:00:01]} 54. Nd8 {[%emt 0:00:00]} f6
{[%emt 0:00:03]} 55. Nde6+ {[%emt 0:00:06]} Kg8 {[%emt 0:00:00]} 56. Ne4 {
[%emt 0:00:00]} Kf7 {[%emt 0:00:02]} 57. Nf4 {[%emt 0:00:02]} Ne5 {[%emt 0:00:
01]} 58. Nd5 {[%emt 0:00:00]} Nd7 {[%emt 0:00:06]} 59. Kf3 {[%emt 0:00:04]} Ke6
{[%emt 0:00:00]} 60. Ndxf6 {[%emt 0:00:01]} Nxf6 {[%emt 0:00:04]} 61. Nxf6 {
[%emt 0:00:00]} Kxf6 {[%emt 0:00:00]} 62. Kf4 {[%emt 0:00:00]} Ke6 {[%emt 0:00:
04]} 63. Kg5 {[%emt 0:00:00]} Kf7 {[%emt 0:00:00]} 64. f4 {[%emt 0:00:03]} Kg7
{[%emt 0:00:01]} 65. f5 {[%emt 0:00:03]} gxf5 {[%emt 0:00:03]} 66. Kxf5 {
[%emt 0:00:01]} 1-0

[Event "RUS-ch Blitz 2021"]
[Site "Sochi"]
[Date "2021.10.11"]
[Round "7.5"]
[White "Sakaev, Konstantin"]
[Black "Pridorozhni, Aleksei"]
[Result "0-1"]
[ECO "A53"]
[WhiteElo "2603"]
[BlackElo "2564"]
[Annotator "ChessBase"]
[PlyCount "98"]
[EventDate "2021.10.11"]
[EventType "blitz"]
[EventCountry "RUS"]
[SourceTitle "playchess.com"]
[Source "ChessBase"]
[SourceQuality "1"]
[TimeControl "180+2"]

1. d4 {[%emt 0:00:00]} d6 {[%emt 0:00:00]} 2. Nf3 {[%emt 0:00:00]} Bg4 {
[%emt 0:00:00]} 3. c4 {[%emt 0:00:00]} c6 {[%emt 0:00:00]} 4. Nc3 {[%emt 0:00:
18]} Nd7 {[%emt 0:00:05]} 5. e4 {[%emt 0:00:00]} e5 {[%emt 0:00:00]} 6. Be2 {
[%emt 0:00:00]} Ngf6 {[%emt 0:00:00]} 7. O-O {[%emt 0:00:04]} Be7 {[%emt 0:00:
04]} 8. Be3 {[%emt 0:00:00]} O-O {[%emt 0:00:06]} 9. d5 {[%emt 0:00:12]} Qa5 {
[%emt 0:00:00]} 10. Nd2 {[%emt 0:00:00]} Bxe2 {[%emt 0:00:02]} 11. Qxe2 {
[%emt 0:00:01]} Rfc8 {[%emt 0:00:05]} 12. Rab1 {[%emt 0:00:07]} Qd8 {[%emt 0:
00:06]} 13. Rfc1 {[%emt 0:00:12]} cxd5 {[%emt 0:00:00]} 14. cxd5 {[%emt 0:00:
02]} Ne8 {[%emt 0:00:09]} 15. Nc4 {[%emt 0:00:28]} Bg5 {[%emt 0:00:08]} 16. Nb5
{[%emt 0:00:16]} Bxe3 {[%emt 0:00:45]} 17. Qxe3 {[%emt 0:00:03]} Ndf6 {[%emt 0:
00:07]} 18. h3 {[%emt 0:00:43]} a6 {[%emt 0:00:00]} 19. Nba3 {[%emt 0:00:08]}
Nd7 {[%emt 0:00:01]} 20. Nd2 {[%emt 0:00:00]} g6 {[%emt 0:00:21]} 21. Nc2 {
[%emt 0:00:06]} Rc7 {[%emt 0:00:05]} 22. Ne1 {[%emt 0:00:07]} Rac8 {[%emt 0:00:
04]} 23. Nb3 {[%emt 0:00:00]} f5 {[%emt 0:00:16]} 24. exf5 {[%emt 0:00:01]}
gxf5 {[%emt 0:00:00]} 25. Nf3 {[%emt 0:00:15]} Ndf6 {[%emt 0:00:01]} 26. Rxc7 {
[%emt 0:00:03]} Rxc7 {[%emt 0:00:00]} 27. Qg5+ {[%emt 0:00:02]} Ng7 {[%emt 0:
00:10]} 28. Nh4 {[%emt 0:00:00]} f4 {[%emt 0:00:24]} 29. Nf5 {[%emt 0:00:01]}
Qf8 {[%emt 0:00:01]} 30. Nh6+ {[%emt 0:00:21]} Kh8 {[%emt 0:00:00]} 31. Nd2 {
[%emt 0:00:03]} Rc2 {[%emt 0:00:12]} 32. Rd1 {[%emt 0:00:10]} Rxd2 {[%emt 0:00:
11]} 33. Rxd2 {[%emt 0:00:00]} Ne4 {[%emt 0:00:00]} 34. Nf7+ {[%emt 0:00:22]}
Kg8 {[%emt 0:00:11]} 35. Nh6+ {[%emt 0:00:00]} Kh8 {[%emt 0:00:00]} 36. Nf7+ {
[%emt 0:00:00]} Qxf7 {[%emt 0:00:08]} 37. Qd8+ {[%emt 0:00:00]} Ne8 {[%emt 0:
00:00]} 38. Rc2 {[%emt 0:00:00]} N4f6 {[%emt 0:00:04]} 39. Rc8 {[%emt 0:00:03]}
Kg7 {[%emt 0:00:00]} 40. Rb8 {[%emt 0:00:00]} Kg6 {[%emt 0:00:04]} 41. Qc8 {
[%emt 0:00:03]} Qxd5 {[%emt 0:00:03]} 42. Qxb7 {[%emt 0:00:07]} Qxa2 {[%emt 0:
00:05]} 43. Qe7 {[%emt 0:00:06]} Qa4 {[%emt 0:00:08]} 44. Qe6 {[%emt 0:00:00]}
Qd1+ {[%emt 0:00:07]} 45. Kh2 {[%emt 0:00:00]} Ng7 {[%emt 0:00:00]} 46. Qc4 {
[%emt 0:00:00]} Nf5 {[%emt 0:00:11]} 47. Qxa6 {[%emt 0:00:01]} Qd2 {[%emt 0:00:
00]} 48. Qa7 {[%emt 0:00:09]} f3 {[%emt 0:00:00]} 49. g4 {[%emt 0:00:03]} Nd4 {
[%emt 0:00:01]} 0-1

[Event "RUS-ch Blitz 2021"]
[Site "Sochi"]
[Date "2021.10.11"]
[Round "7.6"]
[White "Iljiushenok, Ilia"]
[Black "Pershin, Denis"]
[Result "1-0"]
[ECO "B12"]
[WhiteElo "2554"]
[BlackElo "2388"]
[Annotator "ChessBase"]
[PlyCount "83"]
[EventDate "2021.10.11"]
[EventType "blitz"]
[EventCountry "RUS"]
[SourceTitle "playchess.com"]
[Source "ChessBase"]
[SourceQuality "1"]
[TimeControl "180+2"]

1. e4 {[%emt 0:00:00]} c6 {[%emt 0:00:00]} 2. d4 {[%emt 0:00:00]} d5 {[%emt 0:
00:19]} 3. e5 {[%emt 0:00:03]} Bf5 {[%emt 0:00:00]} 4. c4 {[%emt 0:00:00]} e6 {
[%emt 0:00:00]} 5. Nc3 {[%emt 0:00:00]} Ne7 {[%emt 0:00:00]} 6. a3 {[%emt 0:00:
00]} dxc4 {[%emt 0:00:15]} 7. Bxc4 {[%emt 0:00:05]} Nd7 {[%emt 0:00:00]} 8.
Nge2 {[%emt 0:00:07]} Nb6 {[%emt 0:00:03]} 9. Ba2 {[%emt 0:00:00]} Ned5 {
[%emt 0:00:00]} 10. O-O {[%emt 0:00:19]} Be7 {[%emt 0:00:00]} 11. Ng3 {[%emt 0:
00:02]} Bg6 {[%emt 0:00:08]} 12. Nce4 {[%emt 0:00:05]} h5 {[%emt 0:00:16]} 13.
Qf3 {[%emt 0:00:13]} h4 {[%emt 0:00:09]} 14. Ne2 {[%emt 0:00:00]} Bf5 {[%emt 0:
00:14]} 15. h3 {[%emt 0:00:06]} g5 {[%emt 0:00:19]} 16. b4 {[%emt 0:00:40]} Rg8
{[%emt 0:00:00]} 17. Nc5 {[%emt 0:00:32]} g4 {[%emt 0:00:04]} 18. hxg4 {
[%emt 0:00:00]} Bxg4 {[%emt 0:00:05]} 19. Qe4 {[%emt 0:00:05]} Bf5 {[%emt 0:00:
13]} 20. Qf3 {[%emt 0:00:00]} Qc7 {[%emt 0:00:27]} 21. Nf4 {[%emt 0:00:03]}
O-O-O {[%emt 0:00:07]} 22. Nxd5 {[%emt 0:00:00]} Nxd5 {[%emt 0:00:00]} 23. Bd2
{[%emt 0:00:18]} Rg6 {[%emt 0:00:01]} 24. Kh1 {[%emt 0:00:10]} Rdg8 {[%emt 0:
00:08]} 25. Rg1 {[%emt 0:00:00]} Rh8 {[%emt 0:00:13]} 26. Bb1 {[%emt 0:00:06]}
Rg3 {[%emt 0:00:07]} 27. Qe2 {[%emt 0:00:04]} Bg4 {[%emt 0:00:00]} 28. Qe4 {
[%emt 0:00:01]} Bf3 {[%emt 0:00:07]} 29. gxf3 {[%emt 0:00:06]} Bxc5 {[%emt 0:
00:16]} 30. bxc5 {[%emt 0:00:14]} Rxg1+ {[%emt 0:00:10]} 31. Kxg1 {[%emt 0:00:
00]} h3 {[%emt 0:00:13]} 32. Bd3 {[%emt 0:00:00]} Qe7 {[%emt 0:00:02]} 33. Kh1
{[%emt 0:00:04]} Rh4 {[%emt 0:00:00]} 34. f4 {[%emt 0:00:05]} f5 {[%emt 0:00:
01]} 35. exf6 {[%emt 0:00:02]} Nxf6 {[%emt 0:00:05]} 36. Qf3 {[%emt 0:00:04]}
Qd7 {[%emt 0:00:02]} 37. Be3 {[%emt 0:00:08]} h2 {[%emt 0:00:04]} 38. Re1 {
[%emt 0:00:01]} Qg7 {[%emt 0:00:05]} 39. f5 {[%emt 0:00:04]} exf5 {[%emt 0:00:
05]} 40. Bxf5+ {[%emt 0:00:00]} Kd8 {[%emt 0:00:02]} 41. Qg3 {[%emt 0:00:03]}
Qh8 {[%emt 0:00:01]} 42. Qd6+ {[%emt 0:00:00]} 1-0